[Event "1000GM Schev-G6 March 2024"]
[Site "Santa Clara"]
[Date "2024.03.09"]
[Round "1.1"]
[White "Yuan, Serena"]
[Black "Monroy G., Nataly A."]
[Result "0-1"]
[ECO "E66"]
[WhiteElo "1929"]
[BlackElo "1925"]
[Annotator "RC"]
[PlyCount "102"]
[EventDate "2024.03.06"]
[EventType "schev"]
[EventCountry "USA"]
[SourceTitle "playchess.com"]
[Source "ChessBase"]
[SourceQuality "1"]
[TimeControl "5400+30"]

1. d4 {[%emt 0:04:13]} Nf6 {[%emt 0:00:21]} 2. c4 {[%emt 0:00:19]} g6 {[%emt 0:00:12]} 3. Nf3 {[%emt 0:00:16]} Bg7 {[%emt 0:00:10]} 4. g3 {[%emt 0:00:15]} O-O {[%emt 0:00:35]} 5. Bg2 {[%emt 0:00:10]} d6 {[%emt 0:00:37]} 6. O-O {[%emt 0:00:09]} c5 {[%emt 0:00:19]} 7. Nc3 {[%emt 0:00:22]} Nc6 {[%emt 0:00:33]} 8. d5 {[%emt 0:00:12]} Na5 {[%emt 0:00:09]} 9. Nd2 {[%emt 0:00:09]} a6 {[%emt 0:00:35]} 10. Rb1 {[%emt 0:00:38]} b5 {[%emt 0:10:07]} 11. cxb5 {[%emt 0:08:38]} axb5 {[%emt 0:02:12]} 12. Nxb5 {[%emt 0:04:00]} Qb6 {[%emt 0:09:25]} 13. Nc3 {[%emt 0:03:50]} Ng4 {[%emt 0:02:58]} 14. h3 {[%emt 0:05:56]} Ne5 {[%emt 0:04:37]} 15. Qc2 {[%emt 0:04:31]} Bf5 {[%emt 0:07:56]} 16. e4 {[%emt 0:03:45]} Bc8 {[%emt 0:00:31]} 17. Nf3 {[%emt 0:02:02]} Ba6 {[%emt 0:01:02]} 18. Rd1 {[%emt 0:00:39]} Rfb8 {[%emt 0:03:01]} 19. Nxe5 {[%emt 0:03:38]} Bxe5 {[%emt 0:00:06]} 20. b3 {[%emt 0:03:18]} Bd4 {[%emt 0:10:58]} 21. Ne2 {[%emt 0:04:37]} Bg7 {[%emt 0:02:52]} 22. Be3 {[%emt 0:08:20]} Qb4 {[%emt 0:05:04]} 23. Bd2 {[%emt 0:08:07]} Qb5 {[%emt 0:05:57]} 24. Bf1 {[%emt 0:07:04]} Qd3 {[%emt 0:14:18]} 25. Qc1 {[%emt 0:04:19]} Qxe4 {[%emt 0:02:02]} 26. Bxa5 {[%emt 0:08:54]} Bxe2 {[%emt 0:00:28]} 27. Bxe2 {[%emt 0:01:30]} Qxe2 {[%emt 0:03:06]} 28. Qd2 {[%emt 0:08:34]} Qxd2 {[%emt 0:00:59]} 29. Bxd2 {[%emt 0:00:08]} Rxa2 {[%emt 0:00:05]} 30. b4 {[%emt 0:01:48]} Bd4 {[%emt 0:01:47]} 31. b5 {[%emt 0:01:30]} Bb2 {[%emt 0:01:14]} 32. Bc1 {[%emt 0:03:19]} Rxb5 {[%emt 0:01:06]} 33. Kf1 {[%emt 0:01:16]} c4 {[%emt 0:00:23]} 34. Bxb2 {[%emt 0:00:26]} Rbxb2 {[%emt 0:00:17]} 35. Rxb2 {[%emt 0:00:07]} Rxb2 {[%emt 0:00:03]} 36. Rc1 {[%emt 0:00:20]} Rd2 {[%emt 0:00:08]} 37. Rxc4 {[%emt 0:00:16]} Rxd5 {[%emt 0:00:04]} 38. Ke2 {[%emt 0:00:09]} Kg7 {[%emt 0:00:28]} 39. Rf4 {[%emt 0:00:51]} g5 {[%emt 0:01:50]} 40. Rf3 {[%emt 0:00:59]} h5 {[%emt 0:00:40]} 41. g4 {[%emt 0:00:47]} hxg4 {[%emt 0:00:30]} 42. hxg4 {[%emt 0:00:02]} Rd4 {[%emt 0:00:16]} 43. Rg3 {[%emt 0:00:18]} e6 {[%emt 0:00:31]} 44. Ke3 {[%emt 0:00:24]} Ra4 {[%emt 0:00:04]} 45. f3 {[%emt 0:00:10]} Kf6 {[%emt 0:00:35]} 46. Rh3 {[%emt 0:01:07]} Ke5 {[%emt 0:00:27]} 47. Rh7 {[%emt 0:00:33]} f6 {[%emt 0:00:11]} 48. Rh6 {[%emt 0:00:24]} d5 {[%emt 0:00:11]} 49. Rg6 {[%emt 0:00:21]} Rf4 {[%emt 0:00:36]} 50. Rg7 {[%emt 0:00:32]} d4+ {[%emt 0:00:18]} 51. Ke2 {[%emt 0:00:08]} d3+ {[%emt 0:00:23]} 0-1

[Event "1000GM Schev-G6 March 2024"]
[Site "Santa Clara"]
[Date "2024.03.09"]
[Round "1.2"]
[White "Wu, Jayden"]
[Black "Gonzalez Zharikov, Andrey"]
[Result "0-1"]
[ECO "B17"]
[WhiteElo "1909"]
[BlackElo "1993"]
[Annotator "RC"]
[PlyCount "62"]
[EventDate "2024.03.06"]
[EventType "schev"]
[EventCountry "USA"]
[SourceTitle "playchess.com"]
[Source "ChessBase"]
[SourceQuality "1"]
[TimeControl "5400+30"]

1. e4 {[%emt 0:00:33]} c6 {[%emt 0:00:10]} 2. d4 {[%emt 0:00:14]} d5 {[%emt 0:00:10]} 3. Nc3 {[%emt 0:00:14]} dxe4 {[%emt 0:00:08]} 4. Nxe4 {[%emt 0:00:08]} Nd7 {[%emt 0:00:08]} 5. Bd3 {[%emt 0:00:07]} Ngf6 {[%emt 0:00:06]} 6. Ng5 {[%emt 0:00:07]} e6 {[%emt 0:01:14]} 7. Qe2 {[%emt 0:00:05]} Bd6 {[%emt 0:00:57]} 8. N1f3 {[%emt 0:02:58]} h6 {[%emt 0:01:05]} 9. Ne4 {[%emt 0:05:06]} Nxe4 {[%emt 0:00:03]} 10. Qxe4 {[%emt 0:00:18]} Nf6 {[%emt 0:00:07]} 11. Qe2 {[%emt 0:00:06]} Qc7 {[%emt 0:01:18]} 12. O-O {[%emt 0:01:23]} O-O {[%emt 0:09:50]} 13. c3 {[%emt 0:07:52]} b6 {[%emt 0:06:04]} 14. h3 {[%emt 0:05:15]} Bb7 {[%emt 0:05:02]} 15. Ne5 {[%emt 0:07:36]} c5 {[%emt 0:14:01]} 16. Ng4 {[%emt 0:00:34]} Nxg4 {[%emt 0:03:09]} 17. Qxg4 {[%emt 0:00:19]} cxd4 {[%emt 0:05:59]} 18. cxd4 {[%emt 0:12:01]} Bd5 {[%emt 0:09:22]} 19. f4 {[%emt 0:05:33]} f5 {[%emt 0:04:30]} 20. Qe2 {[%emt 0:00:57]} Be7 {[%emt 0:03:57]} 21. b3 {[%emt 0:01:25]} Bf6 {[%emt 0:00:58]} 22. Bb2 {[%emt 0:01:26]} a5 {[%emt 0:03:39]} 23. Rac1 {[%emt 0:02:34]} Qd6 {[%emt 0:02:20]} 24. Bc4 {[%emt 0:09:16]} a4 {[%emt 0:04:39]} 25. Bxd5 {[%emt 0:01:54]} Qxd5 {[%emt 0:00:53]} 26. Rfe1 {[%emt 0:06:10]} axb3 {[%emt 0:02:17]} 27. Qxe6+ {[%emt 0:07:16]} Qxe6 {[%emt 0:00:11]} 28. Rxe6 {[%emt 0:00:03]} Rxa2 {[%emt 0:00:21]} 29. Bc3 {[%emt 0:03:12]} Rc8 {[%emt 0:00:54]} 30. Kh2 {[%emt 0:02:25]} Rc2 {[%emt 0:02:01]} 31. Rxc2 {[%emt 0:00:29]} bxc2 {[%emt 0:00:06]} 0-1

[Event "1000GM Schev-G6 March 2024"]
[Site "Santa Clara"]
[Date "2024.03.09"]
[Round "1.3"]
[White "Qi, Jenny"]
[Black "Rivera, Alberto"]
[Result "1/2-1/2"]
[ECO "B48"]
[WhiteElo "1764"]
[BlackElo "2290"]
[Annotator "RC"]
[PlyCount "94"]
[EventDate "2024.03.06"]
[EventType "schev"]
[EventCountry "USA"]
[SourceTitle "playchess.com"]
[Source "ChessBase"]
[SourceQuality "1"]
[TimeControl "5400+30"]

1. e4 {[%emt 0:00:04]} c5 {[%emt 0:02:53]} 2. Nf3 {[%emt 0:00:07]} e6 {[%emt 0:00:11]} 3. d4 {[%emt 0:00:19]} cxd4 {[%emt 0:00:07]} 4. Nxd4 {[%emt 0:00:08]} Nc6 {[%emt 0:00:11]} 5. Nc3 {[%emt 0:00:57]} Qc7 {[%emt 0:00:11]} 6. Be3 {[%emt 0:00:40]} a6 {[%emt 0:00:14]} 7. Qf3 {[%emt 0:02:43]} Nf6 {[%emt 0:01:23]} 8. O-O-O {[%emt 0:00:51]} Ne5 {[%emt 0:00:27]} 9. Qg3 {[%emt 0:02:32]} b5 {[%emt 0:00:41]} 10. a3 {[%emt 0:01:42]} h5 {[%emt 0:05:56]} 11. h4 {[%emt 0:03:05]} Rb8 {[%emt 0:01:47]} 12. Bf4 {[%emt 0:09:44]} d6 {[%emt 0:02:26]} 13. Bxb5+ {[%emt 0:28:39]} Bd7 {[%emt 0:37:30]} 14. Bxe5 {[%emt 0:13:43]} dxe5 {[%emt 0:14:36]} 15. Bxa6 {[%emt 0:04:28]} Qb6 {[%emt 0:12:47]} 16. Ndb5 {[%emt 0:01:44]} Be7 {[%emt 0:08:49]} 17. Na4 {[%emt 0:03:55]} Qc6 {[%emt 0:01:29]} 18. Qc3 {[%emt 0:07:15]} Nxe4 {[%emt 0:05:17]} 19. Qxe5 {[%emt 0:07:22]} Rxb5 {[%emt 0:02:25]} 20. Bxb5 {[%emt 0:01:34]} Qxb5 {[%emt 0:00:05]} 21. Qxe4 {[%emt 0:00:42]} Qxa4 {[%emt 0:00:28]} 22. Rd4 {[%emt 0:02:15]} Qc6 {[%emt 0:00:33]} 23. Qd3 {[%emt 0:01:48]} Bc8 {[%emt 0:01:02]} 24. Qc4 {[%emt 0:03:41]} Bb7 {[%emt 0:00:23]} 25. Rhd1 {[%emt 0:01:48]} Qxg2 {[%emt 0:00:35]} 26. Rd7 {[%emt 0:00:39]} Qc6 {[%emt 0:00:32]} 27. Qxc6 {[%emt 0:00:24]} Bxc6 {[%emt 0:00:04]} 28. Rc7 {[%emt 0:00:11]} Bd5 {[%emt 0:00:56]} 29. c4 {[%emt 0:00:14]} Bd8 {[%emt 0:00:10]} 30. Rc8 {[%emt 0:00:33]} Kd7 {[%emt 0:00:22]} 31. Rc5 {[%emt 0:01:21]} Bb6 {[%emt 0:01:30]} 32. Rb5 {[%emt 0:00:30]} Kc6 {[%emt 0:00:00]} 33. Rxb6+ {[%emt 0:00:15]} Kxb6 {[%emt 0:00:00]} 34. cxd5 {[%emt 0:00:09]} exd5 {[%emt 0:00:02]} 35. Rxd5 {[%emt 0:00:07]} Rh6 {[%emt 0:00:41]} 36. Rf5 {[%emt 0:00:22]} f6 {[%emt 0:00:44]} 37. Kd2 {[%emt 0:00:13]} Rh8 {[%emt 0:00:37]} 38. Kc3 {[%emt 0:00:41]} Kc6 {[%emt 0:00:11]} 39. b4 {[%emt 0:01:12]} Kb6 {[%emt 0:00:30]} 40. a4 {[%emt 0:00:21]} Rc8+ {[%emt 0:00:19]} 41. Kb3 {[%emt 0:00:12]} Rc1 {[%emt 0:01:05]} 42. a5+ {[%emt 0:01:08]} Ka6 {[%emt 0:00:07]} 43. Rxh5 {[%emt 0:00:25]} Rb1+ {[%emt 0:00:16]} 44. Kc3 {[%emt 0:00:22]} Rc1+ {[%emt 0:00:09]} 45. Kb3 {[%emt 0:01:10]} Rb1+ {[%emt 0:00:08]} 46. Kc3 {[%emt 0:00:08]} Rc1+ {[%emt 0:00:06]} 47. Kb3 {[%emt 0:00:22]} Rb1+ {[%emt 0:00:07]} 1/2-1/2

[Event "1000GM Schev-G6 March 2024"]
[Site "Santa Clara"]
[Date "2024.03.09"]
[Round "1.4"]
[White "Lorenzana, Wilson Estuardo"]
[Black "Zhuge, Katherine"]
[Result "1-0"]
[ECO "B12"]
[WhiteElo "2074"]
[BlackElo "1798"]
[Annotator "RC"]
[PlyCount "63"]
[EventDate "2024.03.06"]
[EventType "schev"]
[EventCountry "USA"]
[SourceTitle "playchess.com"]
[Source "ChessBase"]
[SourceQuality "1"]
[TimeControl "5400+30"]

1. e4 {[%emt 0:02:02]} c6 {[%emt 0:00:04]} 2. d4 {[%emt 0:00:53]} d5 {[%emt 0:00:08]} 3. e5 {[%emt 0:00:08]} Bf5 {[%emt 0:00:05]} 4. c4 {[%emt 0:00:11]} e6 {[%emt 0:00:09]} 5. Nc3 {[%emt 0:00:10]} Ne7 {[%emt 0:00:08]} 6. h3 {[%emt 0:00:50]} dxc4 {[%emt 0:09:20]} 7. Bxc4 {[%emt 0:00:08]} Nd5 {[%emt 0:00:07]} 8. Nge2 {[%emt 0:00:23]} h6 {[%emt 0:05:43]} 9. O-O {[%emt 0:01:36]} Be7 {[%emt 0:04:11]} 10. Nxd5 {[%emt 0:05:16]} cxd5 {[%emt 0:01:17]} 11. Bd3 {[%emt 0:00:05]} Bxd3 {[%emt 0:01:42]} 12. Qxd3 {[%emt 0:00:15]} Nc6 {[%emt 0:05:14]} 13. a3 {[%emt 0:04:37]} O-O {[%emt 0:04:03]} 14. b4 {[%emt 0:07:50]} Rc8 {[%emt 0:03:54]} 15. f4 {[%emt 0:08:39]} Qb6 {[%emt 0:07:23]} 16. Be3 {[%emt 0:03:40]} a5 {[%emt 0:06:55]} 17. b5 {[%emt 0:01:06]} Na7 {[%emt 0:02:47]} 18. a4 {[%emt 0:00:07]} Rc4 {[%emt 0:01:50]} 19. f5 {[%emt 0:00:15]} Rfc8 {[%emt 0:07:38]} 20. f6 {[%emt 0:04:16]} Bf8 {[%emt 0:06:40]} 21. fxg7 {[%emt 0:00:23]} Bxg7 {[%emt 0:00:10]} 22. Rxf7 {[%emt 0:07:58]} Kxf7 {[%emt 0:03:15]} 23. Qh7 {[%emt 0:00:46]} Qd8 {[%emt 0:15:35]} 24. Rf1+ {[%emt 0:00:21]} Ke8 {[%emt 0:00:30]} 25. Qg8+ {[%emt 0:01:24]} Kd7 {[%emt 0:00:32]} 26. Rf7+ {[%emt 0:00:06]} Qe7 {[%emt 0:00:08]} 27. Rxe7+ {[%emt 0:00:06]} Kxe7 {[%emt 0:00:04]} 28. Qxg7+ {[%emt 0:00:05]} Kd8 {[%emt 0:02:05]} 29. Bxh6 {[%emt 0:00:30]} R4c7 {[%emt 0:00:44]} 30. Bg5+ {[%emt 0:00:44]} Ke8 {[%emt 0:00:09]} 31. Qg8+ {[%emt 0:00:08]} Kd7 {[%emt 0:00:12]} 32. Qf7# {[%emt 0:51:32]} 1-0

[Event "1000GM Schev-G6 March 2024"]
[Site "Santa Clara"]
[Date "2024.03.09"]
[Round "1.5"]
[White "Garduno Huerta, Joshua Emiliano"]
[Black "Penagalapati, Anvitha"]
[Result "1-0"]
[ECO "D55"]
[WhiteElo "1941"]
[BlackElo "1642"]
[Annotator "RC"]
[PlyCount "59"]
[EventDate "2024.03.06"]
[EventType "schev"]
[EventCountry "USA"]
[SourceTitle "playchess.com"]
[Source "ChessBase"]
[SourceQuality "1"]
[TimeControl "5400+30"]

1. d4 {[%emt 0:00:11]} Nf6 {[%emt 0:00:07]} 2. c4 {[%emt 0:00:45]} e6 {[%emt 0:00:06]} 3. Nc3 {[%emt 0:00:11]} d5 {[%emt 0:00:13]} 4. Nf3 {[%emt 0:00:09]} Be7 {[%emt 0:00:28]} 5. Bg5 {[%emt 0:00:19]} O-O {[%emt 0:00:30]} 6. e3 {[%emt 0:00:12]} h6 {[%emt 0:01:29]} 7. Bxf6 {[%emt 0:00:09]} Bxf6 {[%emt 0:00:10]} 8. Qd2 {[%emt 0:00:20]} c6 {[%emt 0:05:27]} 9. O-O-O {[%emt 0:00:22]} dxc4 {[%emt 0:09:23]} 10. h4 {[%emt 0:06:15]} b5 {[%emt 0:10:22]} 11. g4 {[%emt 0:03:53]} e5 {[%emt 0:06:38]} 12. g5 {[%emt 0:03:34]} hxg5 {[%emt 0:04:32]} 13. dxe5 {[%emt 0:03:48]} Bg4 {[%emt 0:04:36]} 14. exf6 {[%emt 0:18:21]} Qxf6 {[%emt 0:09:00]} 15. hxg5 {[%emt 0:07:14]} Qxf3 {[%emt 0:01:23]} 16. Be2 {[%emt 0:00:10]} Qf5 {[%emt 0:00:37]} 17. Bxg4 {[%emt 0:14:53]} Qxg4 {[%emt 0:01:02]} 18. f4 {[%emt 0:00:19]} Qe6 {[%emt 0:05:24]} 19. Qh2 {[%emt 0:07:48]} f5 {[%emt 0:02:46]} 20. g6 {[%emt 0:00:19]} Qxg6 {[%emt 0:00:46]} 21. Rdg1 {[%emt 0:00:11]} Qf6 {[%emt 0:36:01]} 22. Rg5 {[%emt 0:17:01]} Kf7 {[%emt 0:00:00]} 23. Qh7 {[%emt 0:00:26]} Ke8 {[%emt 0:00:00]} 24. Rxg7 {[%emt 0:01:05]} Rf7 {[%emt 0:00:00]} 25. Rxf7 {[%emt 0:00:42]} Qxf7 {[%emt 0:00:00]} 26. Qh8+ {[%emt 0:00:17]} Qf8 {[%emt 0:00:00]} 27. Qe5+ {[%emt 0:00:18]} Qe7 {[%emt 0:00:00]} 28. Rh8+ {[%emt 0:00:36]} Kd7 {[%emt 0:00:00]} 29. Qxf5+ {[%emt 0:00:43]} Kd6 {[%emt 0:00:00]} 30. Ne4+ {[%emt 0:14:59]} 1-0

[Event "1000GM Schev-G6 March 2024"]
[Site "Santa Clara"]
[Date "2024.03.10"]
[Round "2.1"]
[White "Gonzalez Zharikov, Andrey"]
[Black "Yuan, Serena"]
[Result "1-0"]
[ECO "B33"]
[WhiteElo "1993"]
[BlackElo "1929"]
[Annotator "RC"]
[PlyCount "77"]
[EventDate "2024.03.06"]
[EventType "schev"]
[EventCountry "USA"]
[SourceTitle "playchess.com"]
[Source "ChessBase"]
[SourceQuality "1"]
[TimeControl "5400+30"]

1. e4 {[%emt 0:00:03]} c5 {[%emt 0:01:53]} 2. Nf3 {[%emt 0:00:21]} Nc6 {[%emt 0:00:10]} 3. d4 {[%emt 0:00:06]} cxd4 {[%emt 0:00:15]} 4. Nxd4 {[%emt 0:00:06]} Nf6 {[%emt 0:00:08]} 5. Nc3 {[%emt 0:00:04]} e5 {[%emt 0:00:07]} 6. Ndb5 {[%emt 0:00:02]} d6 {[%emt 0:00:09]} 7. Nd5 {[%emt 0:00:04]} Nxd5 {[%emt 0:00:08]} 8. exd5 {[%emt 0:00:01]} Nb8 {[%emt 0:00:09]} 9. c4 {[%emt 0:00:06]} Be7 {[%emt 0:00:09]} 10. Be2 {[%emt 0:00:49]} a6 {[%emt 0:00:27]} 11. Nc3 {[%emt 0:01:04]} O-O {[%emt 0:00:10]} 12. O-O {[%emt 0:00:17]} f5 {[%emt 0:00:25]} 13. Kh1 {[%emt 0:01:01]} Nd7 {[%emt 0:00:33]} 14. f3 {[%emt 0:01:57]} Bg5 {[%emt 0:00:39]} 15. b4 {[%emt 0:04:03]} b6 {[%emt 0:01:26]} 16. Bxg5 {[%emt 0:07:08]} Qxg5 {[%emt 0:00:10]} 17. Qc1 {[%emt 0:01:44]} Qxc1 {[%emt 0:04:30]} 18. Rfxc1 {[%emt 0:01:55]} Bb7 {[%emt 0:08:21]} 19. Bd1 {[%emt 0:09:06]} Rac8 {[%emt 0:03:13]} 20. Bb3 {[%emt 0:02:42]} g6 {[%emt 0:04:09]} 21. a3 {[%emt 0:07:27]} Kg7 {[%emt 0:02:39]} 22. Rc2 {[%emt 0:02:24]} Rce8 {[%emt 0:06:05]} 23. Ba4 {[%emt 0:00:56]} Re7 {[%emt 0:02:11]} 24. Bxd7 {[%emt 0:01:27]} Rxd7 {[%emt 0:00:01]} 25. Na4 {[%emt 0:01:10]} b5 {[%emt 0:01:07]} 26. Nb6 {[%emt 0:02:15]} Rc7 {[%emt 0:03:15]} 27. c5 {[%emt 0:01:29]} Rd8 {[%emt 0:07:30]} 28. c6 {[%emt 0:01:52]} Bc8 {[%emt 0:08:38]} 29. a4 {[%emt 0:03:38]} f4 {[%emt 0:05:05]} 30. axb5 {[%emt 0:02:58]} axb5 {[%emt 0:00:40]} 31. Ra8 {[%emt 0:47:45]} Rf8 {[%emt 0:02:04]} 32. Rca2 {[%emt 0:00:00]} Bf5 {[%emt 0:02:04]} 33. R2a7 {[%emt 0:00:00]} Rff7 {[%emt 0:02:21]} 34. Rxc7 {[%emt 0:00:00]} Rxc7 {[%emt 0:00:09]} 35. Rb8 {[%emt 0:00:00]} e4 {[%emt 0:13:55]} 36. fxe4 {[%emt 0:00:00]} Bxe4 {[%emt 0:02:40]} 37. Rb7 {[%emt 0:00:00]} Rf7 {[%emt 0:03:04]} 38. Rxf7+ {[%emt 0:00:00]} Kxf7 {[%emt 0:00:05]} 39. c7 {[%emt 0:00:00]} 1-0

[Event "1000GM Schev-G6 March 2024"]
[Site "Santa Clara"]
[Date "2024.03.10"]
[Round "2.2"]
[White "Rivera, Alberto"]
[Black "Wu, Jayden"]
[Result "0-1"]
[ECO "B13"]
[WhiteElo "2290"]
[BlackElo "1909"]
[Annotator "TA"]
[PlyCount "88"]
[EventDate "2024.03.06"]
[EventType "schev"]
[EventCountry "USA"]
[SourceTitle "playchess.com"]
[Source "ChessBase"]
[SourceQuality "1"]
[TimeControl "5400+30"]

{[%evp 9,88,2,12,8,77,20,68,75,89,87,82,100,90,90,101,61,73,56,56,54,100,95,99,96,117,123,127,79,75,-43,136,109,147,102,113,88,104,116,110,51,44,-7,0,0,0,-61,-60,-104,-89,-119,-119,-123,-120,-155,-141,-150,-164,-163,-167,-253,-242,-301,-253,-260,-247,-427,-414,-432,-409,-387,-397,-378,-381,-481,-512,-509,-506,-510,-493,-1161,-1137]} 1. d4 {[%emt 0:05:38]} Nf6 {[%emt 0:00:20]} 2. Nc3 {[%emt 1:25:52]} d5 {[%emt 0:00:04]} 3. Bf4 {[%emt 0:00:00]} c5 {[%emt 0:00:04]} 4. e3 {[%emt 0:00:00]} cxd4 {[%emt 0:00:10]} 5. exd4 {[%emt 0:00:00]} Bg4 {[%emt 0:00:04]} 6. f3 {[%emt 0:00:00]} Bf5 {[%emt 0:03:31]} (6... Bd7 $11) 7. g4 {[%emt 0:00:00]} (7. Nb5 $1 $16 {[%cal Rb5c7] Und jetzt Nc7+ wäre schön.} Na6 8. g4) 7... Bg6 {[%emt 0:04:53]} (7... Bd7 $1 $11 {sieht stärker aus.}) 8. h4 {[%emt 0:00:00][%cal Bh2h4,Bh4h5][%mdl 32] Weiß steht etwas besser.} h6 {[%emt 0:04:02]} 9. Nb5 {[%emt 0:00:00]} Na6 {[%emt 0:05:29]} 10. c3 {[%emt 0:00:00]} e6 {[%emt 0:09:10]} 11. Nh3 {[%emt 0:00:00]} Be7 {[%emt 1:08:13]} 12. h5 {[%emt 0:00:00]} Bh7 {[%emt 0:00:00]} 13. Bd3 {[%emt 0:00:00]} Bxd3 {[%emt 0:00:00]} 14. Qxd3 {[%emt 0:00:00]} Qb6 {[%emt 0:00:00] [#]} (14... Kf8 $14 {kam in Betracht.}) 15. a4 $1 $16 {[%emt 0:00:00]} Qc6 {[%emt 0:00:00]} 16. O-O {[%emt 0:00:00][%cal Bh1f1,Bf1f2,Bf2g2][%mdl 32]} O-O {[%emt 0:00:00]} 17. Rf2 {[%emt 0:00:00]} Nh7 {[%emt 0:00:00]} 18. Qd2 {[%emt 0:00:00]} ({Günstiger ist} 18. Qe3) 18... Qd7 {[%emt 0:00:00]} 19. Re1 {[%emt 0:00:00]} (19. Rg2 $16) 19... b6 $2 {[%emt 0:00:00] [#]} (19... Bh4 $15 {bleibt weiter vorne.}) 20. Rg2 $1 {[%emt 0:00:00]} Qd8 {[%emt 0:00:20]} 21. b4 {[%emt 0:02:34]} Ng5 {[%emt 0:01:23]} 22. Nxg5 {[%emt 0:00:58]} Bxg5 {[%emt 0:00:13]} 23. Bxg5 {[%emt 0:00:55]} Qxg5 {[%emt 0:00:25]} 24. Qxg5 {[%emt 0:01:52]} ({Vorzuziehen ist} 24. f4 $16 Qh4 25. Qe3) 24... hxg5 $14 {[%emt 0:00:02]} 25. Re5 {[%emt 0:00:31]} (25. Ra2 $14) 25... Rac8 {[%emt 0:02:13]} 26. Re3 {[%emt 0:02:47]} (26. Nxa7 $2 Rxc3 27. Rb2 Rc4 $19) 26... Nc7 {[%emt 0:00:38]} 27. Na3 {[%emt 0:01:24]} (27. Nxa7 $11 Ra8 28. Nb5 Nxb5 29. axb5) 27... Ne8 $15 {[%emt 0:00:32]} 28. Nb1 {[%emt 0:01:24] Ab hier gerät Weiß ins Schliddern.} Kh7 {[%emt 0:01:11]} 29. Rf2 {[%emt 0:00:23]} Nd6 {[%emt 0:00:15]} 30. Re5 {[%emt 0:00:27]} Kh6 {[%emt 0:00:10]} 31. Kh2 {[%emt 0:00:24]} Nc4 {[%emt 0:00:14]} 32. Re1 {[%emt 0:00:08]} g6 {[%emt 0:00:27]} 33. hxg6 {[%emt 0:01:02]} Kxg6 {[%emt 0:00:01]} 34. f4 {[%emt 0:00:08]} (34. Rh1 $142) 34... Rh8+ $19 {[%emt 0:00:16]} 35. Kg3 {[%emt 0:00:11]} gxf4+ {[%emt 0:00:03]} 36. Rxf4 {[%emt 0:00:48]} Nd6 {[%emt 0:00:36]} 37. Re3 $2 {[%emt 0:00:41]} (37. Rff1) 37... Ne4+ {[%emt 0:00:12]} 38. Kg2 {[%emt 0:00:45]} Rh7 {[%emt 0:00:12]} 39. Rfxe4 {[%emt 0:00:31]} dxe4 {[%emt 0:00:10]} 40. Rxe4 {[%emt 0:00:26] KRR-KRN} Rch8 {[%emt 0:00:35] ...Rh1 wäre nun fies.} 41. Kg3 {[%emt 0:00:30]} Rh1 {[%emt 0:00:59] Schwarz steht klar auf Gewinn.} 42. Nd2 {[%emt 0:00:21]} R8h3+ {[%emt 0:00:11]} 43. Kf4 {[%emt 0:00:12]} Rxc3 {[%emt 0:00:38]} 44. Ke5 {[%emt 0:00:38]} (44. Nf3 $142) 44... Rd1 {[%emt 0:00:27] Gewichteter Fehlerwert: Weiß=0.41/Schwarz=0.19 (sehr präzise) .  Fehler:       	Weiß=9     	Schwarz=4     Ungenau:       	Weiß=4     	Schwarz=1     OK:         	Weiß=9     	Schwarz=18    Bester:       	Weiß=1     	Schwarz=1     Stark:        	Weiß=2     	---} 0-1

[Event "1000GM Schev-G6 March 2024"]
[Site "Santa Clara"]
[Date "2024.03.10"]
[Round "2.3"]
[White "Lorenzana, Wilson Estuardo"]
[Black "Qi, Jenny"]
[Result "1/2-1/2"]
[ECO "B51"]
[WhiteElo "2074"]
[BlackElo "1764"]
[Annotator "RC"]
[PlyCount "119"]
[EventDate "2024.03.06"]
[EventType "schev"]
[EventCountry "USA"]
[SourceTitle "playchess.com"]
[Source "ChessBase"]
[SourceQuality "1"]
[TimeControl "5400+30"]

1. e4 {[%emt 0:12:01]} c5 {[%emt 0:00:06]} 2. Nf3 {[%emt 0:00:08]} d6 {[%emt 0:00:04]} 3. Bb5+ {[%emt 0:00:04]} Nd7 {[%emt 0:00:38]} 4. O-O {[%emt 0:03:54]} a6 {[%emt 0:01:56]} 5. Bd3 {[%emt 0:00:04]} Ngf6 {[%emt 0:02:00]} 6. Re1 {[%emt 0:03:45]} b5 {[%emt 0:01:59]} 7. c3 {[%emt 0:00:06]} Bb7 {[%emt 0:02:06]} 8. Bc2 {[%emt 0:01:04]} g6 {[%emt 0:01:43]} 9. d4 {[%emt 0:00:07]} cxd4 {[%emt 0:00:54]} 10. cxd4 {[%emt 0:00:47]} Bg7 {[%emt 0:01:22]} 11. a3 {[%emt 0:01:56]} O-O {[%emt 0:01:35]} 12. Nc3 {[%emt 0:00:25]} Rc8 {[%emt 0:02:44]} 13. h3 {[%emt 0:00:13]} Nb6 {[%emt 0:06:00]} 14. Qe2 {[%emt 0:07:29]} Nfd7 {[%emt 0:04:15]} 15. Bg5 {[%emt 0:08:29]} Re8 {[%emt 0:06:00]} 16. Rac1 {[%emt 0:01:40]} Rc7 {[%emt 0:19:23]} 17. Bb3 {[%emt 0:01:38]} Qc8 {[%emt 0:02:21]} 18. e5 {[%emt 0:07:00]} dxe5 {[%emt 0:02:02]} 19. dxe5 {[%emt 0:01:07]} e6 {[%emt 0:01:22]} 20. Ne4 {[%emt 0:03:52]} Bxe4 {[%emt 0:04:52]} 21. Qxe4 {[%emt 0:00:12]} Nc5 {[%emt 0:02:31]} 22. Qe3 {[%emt 0:05:31]} Nxb3 {[%emt 0:03:28]} 23. Qxb3 {[%emt 0:00:02]} Nd5 {[%emt 0:01:37]} 24. Qd3 {[%emt 0:03:26]} Qb8 {[%emt 0:05:05]} 25. Qd2 {[%emt 0:07:54]} Rec8 {[%emt 0:02:27]} 26. Bh6 {[%emt 0:03:13]} Rxc1 {[%emt 0:02:58]} 27. Rxc1 {[%emt 0:00:04]} Rxc1+ {[%emt 0:00:11]} 28. Qxc1 {[%emt 0:00:02]} Qc7 {[%emt 0:01:12]} 29. Qxc7 {[%emt 0:00:51]} Nxc7 {[%emt 0:00:07]} 30. Bxg7 {[%emt 0:00:02]} Kxg7 {[%emt 0:00:09]} 31. Kf1 {[%emt 0:00:03]} Nd5 {[%emt 0:00:58]} 32. g3 {[%emt 0:02:26]} f6 {[%emt 0:04:03]} 33. Ke2 {[%emt 0:00:50]} Nb6 {[%emt 0:02:27]} 34. b3 {[%emt 0:02:38]} fxe5 {[%emt 0:02:43]} 35. Nxe5 {[%emt 0:00:02]} a5 {[%emt 0:02:34]} 36. Kd3 {[%emt 0:02:03]} a4 {[%emt 0:02:07]} 37. bxa4 {[%emt 0:04:54]} Nxa4 {[%emt 0:00:37]} 38. Kd4 {[%emt 0:00:44]} Kf6 {[%emt 0:02:56]} 39. Nc6 {[%emt 0:00:11]} Kf5 {[%emt 0:03:10]} 40. Na7 {[%emt 0:07:25]} e5+ {[%emt 0:02:54]} 41. Kd3 {[%emt 0:00:51]} Nb2+ {[%emt 0:00:35]} 42. Ke2 {[%emt 0:00:14]} h5 {[%emt 0:02:24]} 43. Nxb5 {[%emt 0:00:20]} g5 {[%emt 0:00:15]} 44. Nc3 {[%emt 0:02:20]} e4 {[%emt 0:00:41]} 45. a4 {[%emt 0:02:12]} Nc4 {[%emt 0:00:10]} 46. Nd1 {[%emt 0:00:07]} Ke5 {[%emt 0:00:52]} 47. Ne3 {[%emt 0:00:02]} Na5 {[%emt 0:00:23]} 48. Kd2 {[%emt 0:00:25]} Kd4 {[%emt 0:00:38]} 49. Kc2 {[%emt 0:00:13]} Nb7 {[%emt 0:00:41]} 50. Kd2 {[%emt 0:01:19]} Nc5 {[%emt 0:00:14]} 51. Nf5+ {[%emt 0:01:27]} Ke5 {[%emt 0:00:20]} 52. Ng7 {[%emt 0:00:06]} h4 {[%emt 0:00:20]} 53. gxh4 {[%emt 0:05:28]} gxh4 {[%emt 0:00:07]} 54. Ke3 {[%emt 0:00:06]} Nxa4 {[%emt 0:00:08]} 55. f3 {[%emt 0:00:32]} exf3 {[%emt 0:00:52]} 56. Kxf3 {[%emt 0:00:01]} Nc3 {[%emt 0:00:15]} 57. Kg4 {[%emt 0:00:08]} Ne4 {[%emt 0:00:11]} 58. Kxh4 {[%emt 0:00:06]} Nf2 {[%emt 0:00:07]} 59. Kg3 {[%emt 0:00:08]} Nxh3 {[%emt 0:00:06]} 60. Kxh3 {[%emt 0:00:05]} 1/2-1/2